bitfinex/quotes_ETHUSD_20241022
["timestamp","ask_amount","ask_price","bid_price","bid_amount"]
[1729574670966,3.77939,2646.0,2645.7,11.64686515]
[1729574671398,7.55878,2646.0,2645.7,10.0]
[1729574671622,3.77957,2645.8,2645.7,10.0]
[1729574672022,3.77939,2646.0,2645.7,10.0]
[1729574672229,3.77939,2646.0,2645.7,10.773]
[1729574672598,7.55878,2646.0,2645.7,12.41986515]
[1729574673040,3.77944,2645.9,2645.7,12.41986515]
[1729574673532,3.77944,2645.9,2645.7,10.773]
[1729574674099,3.77929,2646.0,2645.7,10.773]
[1729574674325,3.77929,2646.0,2645.7,12.41986515]
[1729574674728,3.77929,2646.0,2645.7,10.773]
[1729574675035,3.77929,2646.0,2645.7,12.41986515]
[1729574675263,7.55868,2646.0,2645.7,12.41986515]
[1729574675396,3.77929,2646.0,2645.7,12.41986515]
[1729574675797,3.77929,2646.0,2645.7,10.773]
[1729574675993,3.77929,2646.0,2645.7,12.41986515]
[1729574676397,7.55866,2646.0,2645.7,12.41986515]
[1729574677913,3.77929,2646.0,2645.7,10.773]
[1729574678299,3.77952,2645.9,2645.7,10.0]
[1729574681120,3.77952,2645.9,2645.8,0.11396138]
[1729574681322,3.77952,2645.9,2645.7,10.0]
[1729574681766,3.77952,2645.9,2645.8,0.11396138]
[1729574682062,3.77952,2645.9,2645.7,10.0]
[1729574682218,3.77952,2645.9,2645.8,0.11396138]
[1729574682631,3.77952,2645.9,2645.7,10.0]
[1729574682836,3.77952,2645.9,2645.8,0.11396138]
[1729574683220,3.77952,2645.9,2645.7,10.0]
[1729574683563,3.77952,2645.9,2645.8,0.11396138]
[1729574683718,3.77952,2645.9,2645.7,10.0]
[1729574684126,3.77952,2645.9,2645.8,0.11396138]
[1729574684535,3.77929,2646.0,2645.7,10.0]
[1729574684866,3.77951,2645.9,2645.8,0.11396138]
[1729574685260,3.77951,2645.9,2645.7,10.0]
[1729574685460,3.77951,2645.9,2645.8,0.11396138]
[1729574685920,3.77951,2645.9,2645.7,10.0]
[1729574686116,3.77951,2645.9,2645.8,0.11396138]
[1729574686462,3.77951,2645.9,2645.7,10.0]
[1729574686688,3.77951,2645.9,2645.8,0.11396138]
[1729574686989,3.77951,2645.9,2645.7,10.0]
[1729574687137,3.77951,2645.9,2645.8,0.11396138]
[1729574687337,3.77951,2645.9,2645.7,10.0]
[1729574687537,3.77951,2645.9,2645.8,0.11396138]
[1729574687781,3.77951,2645.9,2645.7,10.0]
[1729574688073,3.77951,2645.9,2645.8,0.11396138]
[1729574688377,3.77951,2645.9,2645.7,10.0]
[1729574688669,3.77951,2645.9,2645.8,0.11396138]
[1729574688875,3.77929,2646.0,2645.8,0.11396138]
[1729574689081,7.55867,2646.0,2645.7,10.0]
[1729574689244,3.77929,2646.0,2645.9,0.11397558]
[1729574689431,3.77929,2646.0,2645.7,12.45186515]
[1729574689630,3.77929,2646.0,2645.9,0.11397558]
[1729574689851,3.77929,2646.0,2645.7,12.45186515]
[1729574690049,3.77929,2646.0,2645.9,0.11397558]
[1729574690330,3.77929,2646.0,2645.7,12.45186515]
[1729574690463,3.77929,2646.0,2645.9,0.11397558]
[1729574690786,3.77929,2646.0,2645.9,0.11410363]
[1729574690941,3.77929,2646.0,2645.7,10.805]
[1729574691140,3.77929,2646.0,2645.8,0.11410363]
[1729574691375,3.77929,2646.0,2645.7,10.805]
[1729574691637,7.55866,2646.0,2645.8,0.11410363]
[1729574692073,3.77943,2645.9,2645.7,10.0]
[1729574692236,3.77957,2645.8,2645.7,10.0]
[1729574692844,3.77943,2645.9,2645.7,10.0]
[1729574693647,7.55897,2645.9,2645.7,10.0]
[1729574695949,3.77957,2645.8,2645.7,10.0]
[1729574696148,3.77943,2645.9,2645.7,10.0]
[1729574696559,7.55894,2645.9,2645.7,10.0]
[1729574697477,3.77943,2645.9,2645.7,10.0]
[1729574697662,7.55894,2645.9,2645.7,10.0]
[1729574698285,3.77943,2645.9,2645.7,10.0]
[1729574698515,7.55895,2645.9,2645.7,10.0]
[1729574698818,3.77943,2645.9,2645.7,10.0]
[1729574700009,3.77922,2646.1,2645.8,2.43176515]
[1729574700314,3.77922,2646.1,2645.8,0.7849]
[1729574701104,3.7793,2646.0,2645.8,0.7849]
[1729574703601,3.77922,2646.1,2645.8,0.7849]
[1729574704435,7.55848,2646.1,2645.8,0.7849]
[1729574705149,3.77922,2646.1,2645.8,0.7849]
[1729574706119,3.77914,2646.1,2645.8,0.7849]
[1729574706441,3.77929,2646.0,2645.8,0.7849]
[1729574711107,3.77929,2646.0,2645.9,0.11389528]
[1729574715361,7.55838,2646.1,2645.9,0.11389528]
[1729574715660,3.77928,2646.0,2645.9,0.11389528]
[1729574717113,0.43432553,2646.2,2646.0,0.7651]
[1729574717348,0.43432553,2646.2,2646.1,1.64686515]
[1729574717739,0.43432553,2646.2,2646.1,1.76076043]
[1729574718253,4.21332553,2646.2,2646.1,1.76076043]
[1729574718463,4.21332553,2646.2,2646.1,2.12233443]
[1729574720318,6.67279068,2646.2,2646.1,0.11389528]
[1729574720547,3.77957,2645.8,2645.7,10.0]
[1729574726089,3.77957,2645.8,2645.7,10.10586721]
[1729574728198,3.77957,2645.8,2645.7,12.56373236]
[1729574728413,3.77957,2645.8,2645.7,13.8201056]
[1729574728912,3.77957,2645.8,2645.7,12.17324045]
[1729574729315,3.77944,2645.9,2645.7,13.8201056]
[1729574729470,3.77936,2646.0,2645.8,1.64686515]
[1729574729675,3.77936,2646.0,2645.9,0.10615828]
[1729574730387,3.77936,2646.0,2645.9,1.75302343]
[1729574730707,3.77936,2646.0,2645.9,0.10615828]
[1729574732080,3.77936,2646.0,2645.9,0.15108571]
[1729574735195,3.77936,2646.0,2645.7,13.71423839]
[1729574735433,3.77936,2646.0,2645.9,0.15109278]
[1729574735603,3.77936,2646.0,2645.8,1.37142384]
[1729574735813,3.77936,2646.0,2645.9,0.15109278]
[1729574738677,7.55841,2646.1,2645.9,0.15109278]
[1729574739190,3.77928,2646.0,2645.9,0.15109278]
[1729574739389,3.77928,2646.0,2645.9,0.73607312]
[1729574741424,3.77928,2646.0,2645.9,0.15109278]
[1729574745525,3.77928,2646.0,2645.7,12.45786515]
[1729574745726,3.77928,2646.0,2645.9,0.15109278]
[1729574745886,3.77928,2646.0,2645.7,12.45786515]
[1729574746387,3.77928,2646.0,2645.8,0.15109278]
[1729574746792,3.77928,2646.0,2645.7,12.45786515]
[1729574746993,3.77928,2646.0,2645.9,0.15109278]
[1729574747226,3.77928,2646.0,2645.8,1.24578652]
[1729574747427,3.77928,2646.0,2645.9,0.15109278]
[1729574757803,3.77928,2646.0,2645.8,1.24578652]
[1729574758005,3.77928,2646.0,2645.9,0.15090109]
[1729574758505,3.77928,2646.0,2645.7,12.45786515]
[1729574758705,3.77928,2646.0,2645.8,0.15090109]
[1729574758906,3.77928,2646.0,2645.7,14.08163966]
[1729574759229,3.77928,2646.0,2645.8,0.15090109]
[1729574759546,3.77928,2646.0,2645.7,14.08163966]
[1729574759747,3.77928,2646.0,2645.9,0.15090109]
[1729574759946,3.77928,2646.0,2645.7,14.08163966]
[1729574760240,3.77928,2646.0,2645.9,0.15090109]
[1729574760736,3.77928,2646.0,2645.7,14.08163966]
[1729574761041,3.77928,2646.0,2645.9,0.15090109]
[1729574761246,3.77928,2646.0,2645.7,12.45786515]
[1729574761447,3.77928,2646.0,2645.9,0.15090109]
[1729574761953,3.77928,2646.0,2645.7,12.45786515]
[1729574762130,3.77928,2646.0,2645.9,0.15090109]
[1729574762332,3.77928,2646.0,2645.7,12.45786515]
[1729574762532,3.77928,2646.0,2645.9,0.15085139]
[1729574762839,3.77928,2646.0,2645.7,14.08164667]
[1729574763044,3.77928,2646.0,2645.9,0.15085139]
[1729574763536,3.77928,2646.0,2645.7,14.08164667]
[1729574763713,3.77928,2646.0,2645.9,0.15085139]
[1729574764043,3.77928,2646.0,2645.7,14.08164667]
[1729574764246,3.77928,2646.0,2645.9,0.15085139]
[1729574764434,3.77928,2646.0,2645.7,14.08164667]
[1729574764635,3.77928,2646.0,2645.9,0.15085139]
[1729574764823,3.77928,2646.0,2645.7,14.08164667]
[1729574765024,3.77928,2646.0,2645.9,0.15085139]
[1729574765232,3.77928,2646.0,2645.7,14.08164667]
[1729574765477,3.77928,2646.0,2645.9,0.15085139]
[1729574765926,3.77928,2646.0,2645.7,14.08164667]
[1729574766127,3.77928,2646.0,2645.9,0.15085139]
[1729574766434,3.77928,2646.0,2645.7,12.45786515]
[1729574766614,3.77928,2646.0,2645.9,0.15085139]
[1729574766815,3.77928,2646.0,2645.7,12.45786515]
[1729574767018,3.77928,2646.0,2645.9,0.15085139]
[1729574767228,7.55865,2646.0,2645.7,10.811]
[1729574767430,3.77928,2646.0,2645.9,0.15085139]
[1729574767631,3.77941,2646.0,2645.7,12.43478152]
[1729574767852,3.77941,2646.0,2645.9,0.15085139]
[1729574768059,3.77941,2646.0,2645.7,10.811]
[1729574768357,3.77941,2646.0,2645.7,12.43478152]
[1729574768654,3.77941,2646.0,2645.8,0.15085139]
[1729574769019,3.77941,2646.0,2645.7,12.43478152]
[1729574769531,3.77941,2646.0,2645.8,0.15085139]
[1729574769731,3.77941,2646.0,2645.7,12.43478152]
[1729574769949,3.77941,2646.0,2645.9,0.15085139]
[1729574770248,3.77941,2646.0,2645.7,12.43478152]
[1729574770452,3.77941,2646.0,2645.9,0.15085139]
[1729574770658,3.77941,2646.0,2645.7,12.43478152]
[1729574771258,3.77941,2646.0,2645.8,0.15085139]
[1729574771655,3.77941,2646.0,2645.7,12.43478152]
[1729574771871,3.77941,2646.0,2645.9,0.15085139]
[1729574772068,3.77941,2646.0,2645.7,12.43478152]
[1729574772233,3.77941,2646.0,2645.9,0.15085139]
[1729574772434,3.77941,2646.0,2645.7,12.43478152]
[1729574772640,3.77941,2646.0,2645.9,0.15085139]
[1729574772836,3.77941,2646.0,2645.7,12.43478152]
[1729574773037,3.77941,2646.0,2645.9,0.15085139]
[1729574773244,3.77941,2646.0,2645.7,12.43478152]
[1729574773454,3.77941,2646.0,2645.9,0.15085139]
[1729574773953,3.77941,2646.0,2645.7,10.811]
[1729574774157,3.77941,2646.0,2645.9,0.15085139]
[1729574774342,3.77941,2646.0,2645.7,10.811]
[1729574774544,3.77941,2646.0,2645.9,0.15085139]
[1729574774744,3.77941,2646.0,2645.7,10.811]
[1729574775031,3.77941,2646.0,2645.9,0.15085139]
[1729574775230,3.77941,2646.0,2645.7,10.811]
[1729574775468,3.77941,2646.0,2645.9,0.15085139]
[1729574775640,3.77941,2646.0,2645.7,12.43478152]
[1729574776164,3.77941,2646.0,2645.8,0.15085139]
[1729574776340,3.77941,2646.0,2645.7,12.43478152]
[1729574776541,3.77916,2646.1,2645.9,0.15082303]
[1729574776749,4.21333553,2646.2,2645.8,1.64686515]
[1729574777081,4.21333553,2646.2,2646.0,0.15082303]
[1729574777265,4.21333553,2646.2,2645.8,1.64686515]
[1729574777782,4.21333553,2646.2,2645.9,0.15082303]
[1729574778354,2.08119068,2646.2,2645.9,0.15082303]
[1729574778552,3.77957,2645.8,2645.7,10.0]
[1729574779174,4.60877,2645.8,2645.7,10.0]
[1729574784617,7.63707067,2645.8,2645.7,10.0]
[1729574784765,9.28393582,2645.8,2645.7,10.0]
[1729574785102,7.63707067,2645.8,2645.7,10.0]
[1729574785288,12.28393582,2645.8,2645.7,10.0]
[1729574785602,3.78118,2644.7,2644.4,0.8103]
[1729574785809,0.7858,2644.8,2644.4,0.8103]
[1729574786102,4.56682,2644.8,2644.5,0.13664099]
[1729574786491,0.7858,2644.8,2644.5,0.13664099]
[1729574787501,7.56255,2644.7,2644.5,0.13664099]
[1729574787892,7.56255,2644.7,2644.6,0.13664099]
[1729574788063,7.56255,2644.7,2644.2,6.21706515]
[1729574788264,3.78127,2644.7,2644.3,2.26857166]
[1729574788580,3.78127,2644.7,2644.3,2.40521265]
[1729574788789,3.78124,2644.7,2644.3,0.7583475]
[1729574789191,3.78124,2644.7,2644.3,2.40521265]
[1729574789673,3.78124,2644.7,2644.3,0.7583475]
[1729574789868,3.78132,2644.6,2644.3,1.78350614]
[1729574790128,5.42838515,2644.5,2644.3,0.13664099]
[1729574790403,6.20593515,2644.4,2644.2,3.79]
[1729574790778,4.55907,2644.4,2644.2,3.79]
[1729574791299,0.7775,2644.4,2644.2,3.79]
[1729574791612,3.78171,2644.3,2644.2,3.79]
[1729574795115,5.42857515,2644.3,2644.2,3.79]
[1729574795418,5.88449615,2644.3,2644.2,3.79]
[1729574798409,6.67849615,2644.3,2644.2,3.79]
[1729574799371,6.22257515,2644.3,2644.2,3.79]
[1729574799797,4.57571,2644.3,2644.2,3.79]
[1729574800309,6.22257515,2644.3,2644.2,3.79]
[1729574801109,6.22257515,2644.3,2644.2,3.92758806]
[1729574801311,4.57571,2644.3,2644.2,3.92758806]
[1729574801906,6.22257515,2644.3,2644.2,3.92758806]
[1729574803215,4.57571,2644.3,2644.2,3.92758806]
[1729574806108,6.22257515,2644.3,2644.2,3.92758806]
[1729574806510,7.22299066,2644.3,2644.2,0.13758806]
[1729574806943,0.8153,2643.7,2643.3,2.46036515]
[1729574807080,0.8153,2643.7,2643.4,1.64686515]
[1729574807282,3.78244,2643.8,2643.4,0.13769412]
[1729574808090,6.24455515,2643.9,2643.4,0.13769412]
[1729574808289,3.78251,2643.8,2643.4,0.13769412]
[1729574809341,6.24455515,2643.9,2643.4,0.13769412]
[1729574809489,6.24455515,2643.9,2643.4,5.56748927]
[1729574809490,4.59769,2643.9,2643.4,5.56748927]
[1729574810335,4.59769,2643.9,2643.4,1.78455927]
[1729574810494,8.38012,2643.9,2643.4,1.78455927]
[1729574810696,3.78243,2643.8,2643.4,0.13769412]
[1729574811034,3.78243,2643.8,2643.4,1.78455927]
[1729574811241,0.8153,2643.9,2643.4,5.56754927]
[1729574811397,4.59766,2643.9,2643.4,1.78455927]
[1729574811598,8.38007,2643.9,2643.4,1.78455927]
[1729574811821,8.38005,2643.9,2643.4,5.56754927]
[1729574812125,8.38007,2643.9,2643.4,1.78455927]
[1729574812522,4.59766,2643.9,2643.4,1.78455927]
[1729574814416,3.78243,2643.8,2643.4,1.78455927]
[1729574815014,4.59766,2643.9,2643.4,5.56751927]
[1729574816946,3.78204,2644.1,2643.6,1.64686515]
[1729574817148,3.78204,2644.1,2643.6,3.78271]
[1729574817352,3.78204,2644.1,2643.7,0.13910801]
[1729574817552,5.42890515,2644.1,2643.7,0.13910801]
[1729574817719,9.21100515,2644.1,2643.7,0.13910801]
[1729574818351,10.60928722,2644.1,2643.7,0.13910801]
[1729574818548,6.82718722,2644.1,2643.7,0.13910801]
[1729574819352,5.18032207,2644.1,2643.7,0.13910801]
[1729574819553,3.78215,2644.0,2643.7,0.13910801]
[1729574819855,3.78215,2644.0,2643.5,6.19251515]
[1729574820040,3.78215,2644.0,2643.8,0.13910801]
[1729574820249,3.78215,2644.0,2643.5,6.19251515]
[1729574820752,3.78215,2644.0,2643.6,0.13910801]
[1729574822963,3.78229,2643.9,2643.6,0.13910801]
[1729574824358,3.78244,2643.8,2643.6,0.13910801]
[1729574824551,3.78257,2643.7,2643.6,0.13910801]
[1729574824755,3.78244,2643.8,2643.6,0.13910801]
[1729574825333,7.56498,2643.8,2643.6,0.13910801]
[1729574825540,3.78257,2643.7,2643.6,0.13910801]
[1729574825741,4.70375752,2643.7,2643.6,0.13910801]
[1729574825955,4.70375752,2643.7,2643.2,2.40516515]
[1729574826253,3.78288,2643.5,2643.3,0.13946878]
[1729574826675,3.78288,2643.5,2643.2,2.40516515]
[1729574826868,4.70375752,2643.7,2643.4,0.13946878]
[1729574827081,2.56805267,2643.7,2643.2,0.7583]
[1729574827288,1.64686515,2643.4,2643.0,4.577]
[1729574827583,3.78337,2643.2,2643.0,4.577]
[1729574828099,3.78314,2643.3,2643.0,4.577]
[1729574828842,3.78294,2643.5,2643.2,1.64686515]
[1729574829270,3.78277,2643.6,2643.3,1.64686515]
[1729574829483,3.78277,2643.6,2643.2,1.64686515]
[1729574829672,3.78277,2643.6,2643.1,5.43026515]
[1729574830202,3.78287,2643.5,2643.1,5.43026515]
[1729574830385,3.78279,2643.6,2643.1,5.43026515]
[1729574831066,3.78279,2643.6,2643.2,0.1398438]
[1729574831255,3.78288,2643.5,2643.2,0.1398438]
[1729574832090,3.78288,2643.5,2643.0,10.00741515]
[1729574832258,3.78288,2643.5,2643.3,0.1398438]
[1729574832471,3.78288,2643.5,2643.0,10.00741515]
[1729574833002,3.78288,2643.5,2643.1,0.1398438]
[1729574834303,3.78288,2643.5,2643.2,1.64686515]
[1729574834460,3.78282,2643.6,2643.3,0.7798]
[1729574834662,3.78282,2643.6,2643.3,0.91960841]
[1729574835087,3.78238,2643.9,2643.4,3.78298]
[1729574835284,3.78244,2643.8,2643.3,1.55459677]
[1729574835493,3.78244,2643.8,2643.5,0.13981549]
[1729574835679,3.78238,2643.9,2643.3,4.63850563]
[1729574835882,3.78238,2643.9,2643.6,0.13981549]
[1729574836197,8.401958,2643.9,2643.7,0.13981549]
[1729574836497,8.401958,2643.9,2643.4,3.78297]
[1729574836498,3.78243,2643.8,2643.4,1.64686515]
[1729574836801,3.78237,2643.9,2643.4,1.64686515]
[1729574837174,3.78237,2643.9,2643.6,0.7597]
[1729574838876,3.78215,2644.0,2643.6,2.40656515]
[1729574840164,7.60247,2644.2,2643.8,1.64686515]
[1729574840486,3.78207,2644.1,2643.7,1.64686515]
[1729574840690,3.78207,2644.1,2643.6,0.7597]
[1729574841006,3.78207,2644.1,2643.6,1.213959]
[1729574841378,3.78207,2644.1,2643.7,1.64686515]
[1729574842586,3.78207,2644.1,2643.8,1.64686515]
[1729574844216,7.56418,2644.1,2643.6,4.996659]
[1729574844505,3.78207,2644.1,2643.7,1.64686515]
[1729574845974,3.78207,2644.1,2643.8,1.78660277]
[1729574847395,3.78207,2644.1,2643.8,0.13973762]
[1729574847908,3.78207,2644.1,2643.7,5.42941515]
[1729574848095,3.78207,2644.1,2643.9,0.13973762]
[1729574848298,3.78207,2644.1,2643.7,5.42941515]
[1729574848497,3.78207,2644.1,2644.0,0.13973762]
[1729574848695,3.78207,2644.1,2643.7,5.42941515]
[1729574849193,3.78207,2644.1,2643.8,0.13973762]
[1729574849617,3.78207,2644.1,2643.7,5.42941515]
[1729574849792,3.78207,2644.1,2643.9,0.13973762]
[1729574849996,3.78207,2644.1,2643.6,4.54237]
[1729574850318,3.78207,2644.1,2644.0,0.13973762]
[1729574850515,3.78207,2644.1,2643.7,1.64686515]
[1729574850717,3.78207,2644.1,2644.0,0.13973762]
[1729574850896,3.78207,2644.1,2643.7,1.64686515]
[1729574851093,3.78207,2644.1,2644.0,0.13961026]
[1729574851625,3.78207,2644.1,2643.7,1.64686515]
[1729574851835,3.78207,2644.1,2644.0,0.13961026]
[1729574852037,3.78207,2644.1,2643.7,1.64686515]
[1729574852320,3.78207,2644.1,2644.0,0.13961026]
[1729574852525,3.78207,2644.1,2643.7,1.64686515]
[1729574852684,3.78207,2644.1,2644.0,0.13961026]
[1729574852890,3.78207,2644.1,2643.7,1.64686515]
[1729574853132,3.78207,2644.1,2644.0,0.13961026]
[1729574853629,3.78207,2644.1,2643.7,1.64686515]
[1729574853828,3.78207,2644.1,2644.0,0.13961026]
[1729574854032,3.78207,2644.1,2643.6,6.18923515]
[1729574854192,3.78207,2644.1,2644.0,0.13961026]
[1729574854503,3.78207,2644.1,2643.6,6.18923515]
[1729574855039,3.78207,2644.1,2643.7,0.13961026]
[1729574857195,3.78207,2644.1,2643.7,1.78647541]
[1729574859435,3.78207,2644.1,2643.7,0.13961026]
[1729574862545,0.8017,2644.0,2643.7,0.13961026]
[1729574865549,4.58392,2644.0,2643.7,0.13961026]
[1729574865708,6.85386367,2644.0,2643.7,0.13961026]
[1729574866053,3.78244,2643.8,2643.3,6.24722515]
[1729574866250,3.78244,2643.8,2643.3,4.60036]
[1729574866457,3.78244,2643.8,2643.3,6.24722515]
[1729574866955,3.78244,2643.8,2643.4,1.64686515]
[1729574867154,3.78244,2643.8,2643.3,4.60036]
[1729574867360,0.7566,2643.7,2643.3,5.42992515]
[1729574868124,4.53924,2643.7,2643.2,6.24294515]
[1729574868424,4.53924,2643.7,2643.3,1.64686515]
[1729574868615,4.53924,2643.7,2643.2,6.24294515]
[1729574869153,0.7566,2643.7,2643.2,1.64686515]
[1729574869457,3.78273,2643.6,2643.2,1.64686515]
[1729574869642,3.78273,2643.6,2643.1,5.43020515]
[1729574870215,3.78273,2643.6,2643.2,1.64686515]
[1729574870668,3.78273,2643.6,2643.1,3.78334]
[1729574870959,0.7954,2643.5,2643.1,3.78334]
[1729574872018,0.7954,2643.5,2643.0,5.43686515]
[1729574872354,6.22525515,2643.5,2643.0,7.57348]
[1729574872561,3.783,2643.4,2643.0,7.57348]
[1729574872928,0.7954,2643.5,2643.0,9.22034515]
[1729574873250,4.57827,2643.5,2643.0,9.22034515]
[1729574873656,4.57827,2643.5,2643.1,5.43028515]
[1729574874157,0.8105,2643.7,2643.4,1.64686515]
[1729574874743,0.8105,2643.7,2643.3,5.42991515]
[1729574874948,0.8105,2643.7,2643.3,9.21297515]
[1729574875255,0.8105,2643.7,2643.4,1.64686515]
[1729574875926,0.8105,2643.7,2643.3,5.42991515]
[1729574876125,0.8105,2643.7,2643.5,0.13502189]
[1729574876338,0.8105,2643.7,2643.3,5.42991515]
[1729574876570,0.8105,2643.7,2643.6,0.13502189]
[1729574877062,0.8105,2643.7,2643.4,5.42985515]
[1729574877272,0.8105,2643.7,2643.6,0.13502189]
[1729574877563,0.8105,2643.7,2643.3,5.42991515]
[1729574877736,0.8105,2643.7,2643.6,0.13502189]
[1729574878250,0.8105,2643.7,2643.3,5.42991515]
[1729574878423,0.8105,2643.7,2643.6,0.13502189]
[1729574878625,0.8105,2643.7,2643.3,5.42991515]
[1729574878957,4.59307,2643.7,2643.6,0.13502189]
[1729574879262,5.59530752,2643.7,2643.6,0.13502189]
[1729574879462,5.59530752,2643.7,2643.2,5.43014515]
[1729574879763,4.59307,2643.7,2643.6,0.13518423]
[1729574879946,4.59307,2643.7,2643.2,5.43014515]
[1729574880120,4.59307,2643.7,2643.6,0.13518423]
[1729574880320,4.59307,2643.7,2643.2,5.43014515]
[1729574880537,0.8105,2643.7,2643.6,0.13518423]
[1729574881160,4.59307,2643.7,2643.3,1.64686515]
[1729574881326,4.59307,2643.7,2643.6,0.13518423]
[1729574881526,4.59307,2643.7,2643.3,1.64686515]
[1729574881752,4.59307,2643.7,2643.6,0.13518423]
[1729574882366,4.59307,2643.7,2643.2,5.43014515]
[1729574882530,4.59307,2643.7,2643.6,0.13518423]
[1729574882960,4.59307,2643.7,2643.2,5.43014515]
[1729574883177,4.59307,2643.7,2643.6,0.13518423]
[1729574883770,0.8105,2643.7,2643.3,5.42993515]
[1729574883921,0.8105,2643.7,2643.6,0.13518423]
[1729574884127,0.8105,2643.7,2643.3,5.42993515]
[1729574884350,0.8105,2643.7,2643.6,0.13518423]
[1729574884564,0.8105,2643.7,2643.3,5.42993515]
[1729574884760,4.59309,2643.7,2643.6,0.13518423]
[1729574885275,4.59309,2643.7,2643.3,5.42993515]
[1729574885705,4.59309,2643.7,2643.4,0.13518423]
[1729574886645,4.59309,2643.7,2643.3,1.64686515]
[1729574887179,4.59309,2643.7,2643.4,0.13518423]
[1729574891187,5.42925515,2643.9,2643.4,1.78204938]
[1729574891188,3.78243,2643.8,2643.4,1.78204938]
[1729574891352,3.78243,2643.8,2643.4,2.56504938]
[1729574892894,3.78243,2643.8,2643.4,0.91818423]
[1729574893569,3.7825,2643.8,2643.4,0.91818423]
[1729574893769,3.78258,2643.7,2643.4,0.91818423]
[1729574894890,0.7722,2643.9,2643.4,0.91818423]
[1729574895199,3.78243,2643.8,2643.4,2.56504938]
[1729574895694,7.56498,2643.8,2643.4,2.56504938]
[1729574896458,3.78243,2643.8,2643.4,2.56504938]
[1729574897627,7.56495,2643.8,2643.4,2.56504938]
[1729574899635,3.78243,2643.8,2643.4,2.56504938]
[1729574900522,3.78243,2643.8,2643.5,1.64686515]
[1729574900769,3.78243,2643.8,2643.5,0.13256697]
[1729574901037,7.56498,2643.8,2643.5,0.13256697]
[1729574901833,3.78258,2643.7,2643.5,0.13256697]
[1729574902192,3.78243,2643.8,2643.5,0.13256697]
[1729574902997,7.56498,2643.8,2643.5,0.13256697]
[1729574903195,3.78243,2643.8,2643.5,0.13256697]
[1729574905019,7.56496,2643.8,2643.5,0.13256697]
[1729574905349,7.56497,2643.8,2643.5,0.13256697]
[1729574905836,3.78243,2643.8,2643.5,0.13256697]
[1729574906439,7.56497,2643.8,2643.5,0.13256697]
[1729574906745,3.78243,2643.8,2643.5,0.13256697]
[1729574907513,12.16,2644.6,2643.8,0.7979]
[1729574907713,12.16,2644.6,2643.9,1.64686515]
[1729574907714,3.78195,2644.2,2643.9,1.64686515]
[1729574908269,3.78201,2644.1,2644.0,0.13280699]
[1729574909116,3.78201,2644.1,2643.8,2.44476515]
[1729574909320,3.78201,2644.1,2644.0,0.13280699]
[1729574909506,3.78201,2644.1,2643.8,2.44476515]
[1729574909701,3.78201,2644.1,2644.0,0.13280699]
[1729574909944,3.78201,2644.1,2643.8,2.44476515]
[1729574910237,3.78201,2644.1,2644.0,0.13280699]
[1729574910440,3.78201,2644.1,2643.8,2.44476515]
[1729574910650,3.78201,2644.1,2644.0,0.13280699]
[1729574910833,3.78201,2644.1,2643.8,2.44476515]
[1729574911014,3.78201,2644.1,2644.0,0.13280699]
[1729574911214,3.78201,2644.1,2643.8,2.44476515]
[1729574911648,3.78201,2644.1,2643.9,0.13280699]
[1729574912817,3.78187,2644.2,2643.9,0.13280699]
[1729574913018,3.7821,2644.1,2643.9,0.13280699]
[1729574914242,4.21675735,2644.1,2643.9,0.13280699]
[1729574919646,0.43465735,2644.1,2643.9,1.77967214]
[1729574919859,0.43465735,2644.1,2644.0,4.15647106]
[1729574920143,0.43465735,2644.1,2644.0,0.91964582]
[1729574920348,0.43465735,2644.1,2644.0,2.56651097]
[1729574928533,0.43465735,2644.1,2644.0,6.34865097]
[1729574929464,0.43465735,2644.1,2644.0,6.42428213]
[1729574929754,0.43465735,2644.1,2644.0,7.88753876]
[1729574929925,0.43465735,2644.1,2644.0,7.8119076]
[1729574935195,0.43465735,2644.1,2644.0,2.38290245]
[1729574935361,0.43465735,2644.1,2644.0,0.13254582]
[1729574935988,0.43465735,2644.1,2644.0,1.77941097]
[1729574937292,0.43465735,2644.1,2644.0,2.55221097]
[1729574937948,4.59618,2644.4,2644.0,2.55221097]
[1729574938153,4.59618,2644.4,2644.2,1.64686515]
[1729574938751,4.59618,2644.4,2644.3,0.13188241]
[1729574938948,4.59618,2644.4,2644.2,1.64686515]
[1729574939170,4.59618,2644.4,2644.3,0.13188241]
[1729574939379,4.59618,2644.4,2644.2,1.64686515]
[1729574939584,4.59618,2644.4,2644.3,0.13188241]
[1729574939766,4.59618,2644.4,2644.2,1.64686515]
[1729574939952,4.59618,2644.4,2644.3,0.13188241]
[1729574940153,4.59618,2644.4,2644.2,1.64686515]
[1729574940354,4.59617,2644.4,2644.3,0.13188241]
[1729574940587,0.8146,2644.4,2644.1,1.64686515]
[1729574940802,3.78174,2644.3,2644.1,1.64686515]
[1729574941799,1.24922992,2644.4,2644.1,1.64686515]
[1729574943197,5.03083992,2644.4,2644.2,1.64686515]
[1729574943905,5.03083992,2644.4,2644.1,1.64686515]
[1729574945782,5.03083992,2644.4,2644.2,1.64686515]
[1729574946208,1.24922992,2644.4,2644.2,1.89639518]
[1729574946416,0.43462992,2644.4,2644.3,1.64686515]
[1729574946570,0.43462992,2644.4,2644.2,1.89639518]
[1729574949708,0.43462992,2644.4,2644.3,1.64686515]
[1729574950576,0.43462992,2644.4,2644.2,0.24953003]
[1729574950577,0.43462992,2644.4,2644.2,1.89639518]
[1729574950883,0.43462992,2644.4,2644.3,1.7787264]
[1729574959003,0.43462992,2644.4,2644.3,0.13186125]
[1729574959220,0.43462992,2644.4,2644.3,1.64686515]
[1729574959394,0.43462992,2644.4,2644.3,1.7787264]
[1729574964196,0.43462992,2644.4,2644.3,2.33479204]
[1729574965625,0.43462992,2644.4,2644.3,1.7787264]
[1729574976971,0.43462992,2644.4,2644.3,0.13186125]
[1729574977269,0.43462992,2644.4,2644.2,1.64686515]
[1729574977428,0.43462992,2644.4,2644.3,0.13181891]
[1729574977625,0.43462992,2644.4,2644.2,1.64686515]
[1729574977925,0.43462992,2644.4,2644.3,0.13181891]
[1729574978122,0.43462992,2644.4,2644.2,1.64686515]
[1729574978322,0.43462992,2644.4,2644.3,0.13181891]